Cogmind - Beta 15 @@@ ROGUE MODE // 2025.05.23 @ 15:35:00 Player: 7604 Result: Self-destructed Performance ------------- Evolutions (3) 1500 Regions Visited (7) 1400 Robots Destroyed (127) 635 Value Destroyed (3710) 3710 Prototype IDs (31) 620 Alien Tech Used (0) 0 Bonus (1138) 1138 TOTAL SCORE: 9003 Bonus ------- High Alert Combat Kills 531 Follower Combat Kills 107 Entered Garrisons 200 Aligned with FarCom 300 Cogmind --------- Core Integrity 556/700 Matter 249/300 Energy 100/100 System Corruption 0% Temperature Cool (13) Movement Core (1450) Ox28 Location -7/Factory Parts ------- > --- POWER (1) -------- (None) > --- PROPULSION (4) --- (None) > --- UTILITY (5) ------ Cooling System Huge Storage Unit Machine Analyzer > --- WEAPON (3) ------- Longsword +1 > --- INVENTORY (25) --- Experimental Sensor Array Seismic Detector Seismic Detector Seismic Detector Improved Target Analyzer Improved Light Armor Plating Improved Medium Armor Plating Improved Medium Armor Plating Improved Trap Extractor (0/6) Improved EM Shotgun Precision Shock Rifle Improved Light Cannon AWS/Autocannon Long-range Missile Launcher Long-range Missile Launcher Peak State ------------ > --- POWER ------------ Reinforced Deuterium Engine > --- PROPULSION ------- Light Treads Improved Medium Treads Improved Medium Treads Improved Medium Treads > --- UTILITY ---------- Cooling System Huge Storage Unit Machine Analyzer Improved Light Armor Plating Improved Medium Armor Plating > --- WEAPON ----------- Phase Cannon Phase Cannon Longsword +1 > --- INVENTORY -------- Light Treads Light Treads Light Treads Experimental Sensor Array Seismic Detector Seismic Detector Seismic Detector Improved Target Analyzer Improved Light Armor Plating Improved Medium Armor Plating Improved Medium Armor Plating Improved Trap Extractor Improved EM Shotgun Precision Shock Rifle Guided Plasma Cannon Improved Light Cannon Gauss Cannon AWS/Autocannon Long-range Missile Launcher Long-range Missile Launcher [Rating: 60] Favorites ----------- Power Ion Engine Engine Ion Engine Power Core Fission Core Propulsion Light Treads Treads Light Treads Flight Unit Improved Flight Unit Utility Huge Storage Unit Device Cooling System Storage Huge Storage Unit Processor Machine Analyzer Protection Medium Reactive Plating Weapon Improved Light Cannon Energy Gun Heavy EM Shotgun Energy Cannon Phase Cannon Ballistic Gun Assault Rifle Ballistic Cannon Improved Light Cannon Launcher Rocket Launcher Impact Weapon Mace Slashing Weapon Longsword +1 Build | -11 -10 -10 -10 -9 -8 -8 -7 ------- Run | Yrd Mat Min Exi Min Mat Gar Fac Slots Evolved 6 | . . . . . 4 . 2 Power . | . . . . . . . . Propulsion 2 | . . . . . 2 . . Utility 3 | . . . . . 2 . 1 Weapon 1 | . . . . . . . 1 Parts Attached 80 | 7 9 . . 3 30 23 8 Power 6 | 1 . . . . 1 3 1 Engine 4 | 1 . . . . 1 1 1 Core 2 | . . . . . . 2 . Reactor . | . . . . . . . . Propulsion 27 | 2 2 . . . 15 7 1 Treads 25 | 2 2 . . . 13 7 1 Leg . | . . . . . . . . Wheel . | . . . . . . . . Hover . | . . . . . . . . Flight 2 | . . . . . 2 . . Utility 19 | 2 2 . . 1 3 8 3 Device 7 | 1 1 . . . 1 4 . Storage 2 | 1 1 . . . . . . Processor 1 | . . . . . . . 1 Hackware . | . . . . . . . . Protection 9 | . . . . 1 2 4 2 Artifact . | . . . . . . . . Weapon 28 | 2 5 . . 2 11 5 3 Energy Gun 5 | . . . . . 4 . 1 Energy Cannon 4 | . . . . . 1 1 2 Ballistic Gun 3 | 2 1 . . . . . . Ballistic Cannon 7 | . 2 . . . 4 1 . Launcher 7 | . 1 . . 2 1 3 . Special Weapon . | . . . . . . . . Impact Weapon 1 | . 1 . . . . . . Slashing Weapon 1 | . . . . . 1 . . Piercing Weapon . | . . . . . . . . Special Melee Weapon . | . . . . . . . . Unidentified Prototypes 6 | . . . . . 5 . 1 Parts Lost 29 | . 1 . . . . 11 17 Power 4 | . . . . . . 2 2 Propulsion 12 | . 1 . . . . 3 8 Utility 7 | . . . . . . 4 3 Weapon 6 | . . . . . . 2 4 Highest Loss Streak 17 | . 1 . . . . 10 17 To Critical Strikes . | . . . . . . . . Average Backups 18 | 3 10 14 16 20 22 21 22 Power . | . . . . . 1 . . Propulsion 1 | . . . . . 2 2 3 Utility 6 | . 2 6 7 7 8 8 7 Weapon 8 | 1 6 8 9 11 10 9 10 Tool/Special . | . . . . . . . . Unused Backups 24 | . 4 . . . 8 4 8 Power 2 | . 1 . . . 1 . . Propulsion 2 | . . . . . 2 . . Utility 15 | . 1 . . . 4 4 6 Weapon 5 | . 2 . . . 1 . 2 Tool/Special . | . . . . . . . . Average Slot Usage (%) 98 | . 100 100 100 100 97 99 93 Engine 10 | . 14 14 14 14 8 5 7 Treads 31 | . 28 28 28 28 33 35 29 Device 9 | . 14 14 14 . 8 9 14 Storage 10 | . 14 14 14 14 9 9 7 Protection 11 | . . . . 14 17 17 11 Energy Gun 1 | . . . . . 4 . 1 Ballistic Cannon 18 | . 25 28 28 27 12 16 3 Peak Build Rating 60 | 7 11 12 16 18 41 53 60 Average Rating 26 | 6 10 11 13 17 32 42 54 On Entrance 19 | . 7 11 12 16 18 38 50 Naked Turns . | . . . . . . . . Heaviest Build 134 | 14 94 94 94 96 127 134 128 Greatest Support 110 | 40 40 40 40 40 82 110 110 Greatest Overweight (x) 31 | 1 2 2 2 31 3 1 1 Average Overweight (x) 1 | . . 2 2 4 1 1 1 Largest Inventory Capacity 25 | 8 25 25 25 25 25 25 25 Average Capacity 22 | 7 16 25 25 25 25 25 25 Most Carried 25 | 5 14 15 20 25 25 25 25 Average Carried 19 | 3 10 14 17 22 24 23 24 Final Capacity 25 | 8 25 25 25 25 25 25 25 Final Carried 25 | 4 14 15 20 25 25 25 17 Class Distribution -------------------- 86% | Mutant 12% | Scavenger-Mutant Dominant Class ---------------- Mutant | -10/Materials Mutant | -10/Mines Mutant | -10/Exiles Mutant | -9/Mines Mutant | -8/Materials Mutant | -8/Garrison Mutant | -7/Factory Resources | -11 -10 -10 -10 -9 -8 -8 -7 ----------- Run | Yrd Mat Min Exi Min Mat Gar Fac Matter Collected 3818 | 379 686 . . 36 1233 1137 347 Remotely . | . . . . . . . . Salvage Created 3175 | 199 391 . . 33 1487 637 428 Parts 227 | 22 35 . . 18 97 36 19 Haulers Intercepted 5 | . 1 . . . 4 . . Recyclers Shooed 3 | . . . . . 3 . . Parts Field Recycled . | . . . . . . . . Retrieved Matter . | . . . . . . . . Parts Self-Destructed . | . . . . . . . . Prevented . | . . . . . . . . Kills | -11 -10 -10 -10 -9 -8 -8 -7 ------- Run | Yrd Mat Min Exi Min Mat Gar Fac Combat Hostiles Destroyed 83 | . 17 . . 8 25 26 7 Melee 6 | . . . . . 3 1 2 Guns 1 | . . . . . 1 . . Cannons 45 | . 14 . . . 12 14 5 AOE 29 | . 3 . . 8 7 11 . Classes Destroyed 15 | 1 8 . . . 3 3 . Worker 8 | . 2 . . . 5 . 1 Builder 5 | . 1 . . . 2 . 2 Tunneler 10 | 9 . . . . 1 . . Hauler 5 | . 1 . . . 4 . . Recycler 5 | . 1 . . . 4 . . Operator 3 | . 1 . . . 1 . 1 Watcher 7 | . 1 . . . 5 1 . Swarmer 32 | . 8 . . 8 8 8 . Grunt 29 | . 9 . . . 6 9 5 Brawler 1 | . . . . . . 1 . Duelist 4 | . . . . . 1 2 1 Sentry 13 | . . . . . 8 4 1 Specialist 2 | . . . . . 2 . . Hunter 1 | . . . . . . 1 . Behemoth 1 | . . . . . . 1 . Savage 1 | . . . . . . 1 . Best Kill Streak 7 | 2 4 . . 4 6 7 4 Combat Bots Only 7 | . 3 . . 4 4 7 4 Max Kills in Single Turn 4 | 1 2 . . 4 4 4 1 Gunslinging . | . . . . . . . . Exploded 4 | . 2 . . 4 3 4 . Melee 1 | . . . . . 1 1 1 Uniques/NPCs Destroyed . | . . . . . . . . Combat | -11 -10 -10 -10 -9 -8 -8 -7 -------- Run | Yrd Mat Min Exi Min Mat Gar Fac Hostile Shots Fired 616 | . 58 . . 12 128 184 234 Missed 177 | . 20 . . 5 42 40 70 Hits 439 | . 38 . . 7 86 144 164 Melee 7 | . . . . . . 5 2 Projectile 432 | . 38 . . 7 86 139 162 Critical Strikes 23 | . . . . . 3 13 7 Damage Taken 6244 | . 560 . . 85 1069 2721 1809 Core 558 | . 105 . . 8 168 133 144 Absorbed by Shields 296 | . . . . . . 296 . Ignored by Resistances 231 | . . . . . 196 35 . Regen/Repaired (Parts) 131 | . . . . . 131 . . Core Remaining (%) 66 | 100 . . . 54 . 45 . Volleys Fired 328 | 29 65 . . 3 87 105 39 Largest 3 | 2 2 . . 2 2 2 3 Hottest 220 | 40 66 . . 66 95 120 220 Shots Fired 570 | 58 128 . . 6 156 164 58 Gun 121 | 58 18 . . . 38 6 1 Cannon 428 | . 108 . . . 114 149 57 Launcher 21 | . 2 . . 6 4 9 . Special . | . . . . . . . . Kinetic 439 | 58 126 . . . 114 132 9 Thermal 65 | . . . . . . 17 48 Explosive 21 | . 2 . . 6 4 9 . Electromagnetic 45 | . . . . . 38 6 1 Robot Hit Streak 12 | 10 5 . . . 12 9 9 Robot Miss Streak 8 | 2 8 . . . 5 4 3 Penetration Max 1 | . . . . . 1 . . Secondary Targets . | . . . . . . . . Shots Hit Robots 292 | 35 45 . . . 107 69 36 Core Hits 163 | 13 25 . . 8 58 43 16 Critical Kills . | . . . . . . . . Critical Parts Destroyed . | . . . . . . . . Critical Strikes 17 | . . . . . 7 7 3 Blast 11 | . . . . . 7 4 . Sever 6 | . . . . . . 3 3 Melee Attacks 29 | . 1 . . . 8 11 9 Impact 1 | . 1 . . . . . . Slashing 28 | . . . . . 8 11 9 Piercing . | . . . . . . . . Sneak Attacks . | . . . . . . . . Combat Hostiles . | . . . . . . . . Follow-up Attacks . | . . . . . . . . Damage Inflicted 10452 | 365 1180 . . 362 3261 3962 1322 Guns 1065 | 360 99 . . . 594 . 12 Cannons 5816 | . 841 . . . 1780 2280 915 Explosions 2266 | . 230 . . 362 501 1173 . Melee 1201 | . . . . . 297 509 395 Ramming 104 | 5 10 . . . 89 . . Kinetic 4846 | 360 940 . . . 1780 1617 149 Thermal 1648 | . . . . . 219 663 766 Explosive 2047 | . 230 . . 362 282 1173 . Electromagnetic 606 | . . . . . 594 . 12 Impact . | . . . . . . . . Slashing 1201 | . . . . . 297 509 395 Piercing . | . . . . . . . . Highest Corruption . | . . . . . . . . Average Corruption . | . . . . . . . . Corruption Purged . | . . . . . . . . Corruption Blocked . | . . . . . . . . Overload Shots . | . . . . . . . . Overflow Damage 357 | . 15 . . 40 106 165 31 Projectiles 128 | . 5 . . . 96 . 27 Explosions 201 | . 10 . . 40 . 151 . Melee 28 | . . . . . 10 14 4 Knockbacks 40 | . 9 . . . 21 9 1 Impact . | . . . . . . . . Kinetic 38 | . 9 . . . 20 8 1 Secondary 2 | . . . . . 1 1 . Self-Inflicted Damage 119 | . . . . 27 57 35 . Shots 4 | . . . . 2 1 1 . Rammed 11 | 2 3 . . . 6 . . Targets Rammed 13 | 2 5 . . . 6 . . Kicked . | . . . . . . . . Crushed 2 | . 2 . . . . . . Highest Temperature 337 | . 87 . . 30 22 337 302 Average Temperature 63 | . 19 . . 14 8 76 113 Received Heat Transfer 2068 | . 111 . . . 405 679 873 Effects 4 | . . . . . . 3 1 Interference 3 | . . . . . . 3 . Matter Decay 1 | . . . . . . . 1 Siege Activations . | . . . . . . . . Martial Activations . | . . . . . . . . Shielding Activations . | . . . . . . . . Robots Disrupted . | . . . . . . . . Combat Hostiles . | . . . . . . . . Robots Corrupted 4 | . . . . . 4 . . Combat Hostiles 2 | . . . . . 2 . . Parts Fried 14 | . . . . . 14 . . Impact Corruptions 2 | . . . . . 2 . . Robots Melted . | . . . . . . . . Combat Hostiles . | . . . . . . . . Parts Melted 6 | . . . . . . . 6 Heat Transferred 2541 | . . . . . 250 1360 931 Parts Sabotaged . | . . . . . . . . Parts Stolen . | . . . . . . . . Parts Stripped . | . . . . . . . . Power Chain Reactions 3 | . . . . . 3 . . Alert | -11 -10 -10 -10 -9 -8 -8 -7 ------- Run | Yrd Mat Min Exi Min Mat Gar Fac Maximum Alert Level 4 | . . . . . 2 4 3 Low Security (%) 69 | 100 100 100 . 100 82 . . Level 1 7 | . . . . . 11 18 . Level 2 10 | . . . . . 6 19 72 Level 3 4 | . . . . . . 16 27 Level 4 7 | . . . . . . 45 . Level 5 . | . . . . . . . . High Security . | . . . . . . . . Max Security . | . . . . . . . . Peak Influence 1525 | 10 182 25 . 133 427 1525 800 Initial 800 | . . 25 . . . 279 800 Average 260 | . 69 1 . 21 134 900 633 Influence Increases 3485 | 45 543 . . 213 1088 1376 220 Destroy 0b10 Robot/C 1720 | . 340 . . 160 500 580 140 Destroy 0b10 Robot/NC 215 | 45 35 . . . 110 5 20 Destroy Leader 322 | . 74 . . 20 158 40 30 Allied During Kill 6 | . . . . . . 6 . Successful Hack 119 | . 33 . . . 58 28 . Select Force Hacks 30 | . . . . . 30 . . Disable Machine 120 | . 15 . . . 15 75 15 Anti-Garrison Action 450 | . . . . . . 450 . Destroy Structure 278 | . 31 . . 33 82 117 15 Lose Combat Pursuer 225 | . 15 . . . 135 75 . Influence Decreases 2991 | 45 476 67 . 213 658 281 1251 Entered New Map 918 | . . 42 . . . 151 725 Time Decay 1665 | 45 466 25 . 213 560 . 356 Lost Part 290 | . 10 . . . . 110 170 Lost Ally 20 | . . . . . . 20 . Purge Threat 98 | . . . . . 98 . . Squads Dispatched 13 | . 3 . . . 4 . 6 Investigation 4 | . 2 . . . 1 . 1 Extermination 1 | . . . . . . . 1 Reinforcement 4 | . 1 . . . 3 . . Assault 1 | . . . . . . . 1 Garrison 3 | . . . . . . . 3 Intercept . | . . . . . . . . Searches Triggered . | . . . . . . . . Construction Impeded . | . . . . . . . . Haulers Reinforced . | . . . . . . . . Active Scanning Responses . | . . . . . . . . Cargo Convoy Interrupts . | . . . . . . . . Stealth | -11 -10 -10 -10 -9 -8 -8 -7 --------- Run | Yrd Mat Min Exi Min Mat Gar Fac Distress Signals 6 | . 1 . . . 3 1 1 Communications Jammed . | . . . . . . . . Distress Signals . | . . . . . . . . Times Spotted 111 | . 23 . . 5 46 25 12 Peak Tracking Total 8 | . 4 . . 4 4 8 8 Tactical Retreats 11 | . 1 . . . 8 2 . Traps | -11 -10 -10 -10 -9 -8 -8 -7 ------- Run | Yrd Mat Min Exi Min Mat Gar Fac Traps Triggered 7 | . 2 . . . . 5 . Indirectly . | . . . . . . . . Trap Hack Attempts . | . . . . . . . . Triggered . | . . . . . . . . Disarmed . | . . . . . . . . Reprogrammed . | . . . . . . . . Reused . | . . . . . . . . Traps Extracted . | . . . . . . . . Installed . | . . . . . . . . Triggered . | . . . . . . . . Machines | -11 -10 -10 -10 -9 -8 -8 -7 ---------- Run | Yrd Mat Min Exi Min Mat Gar Fac Machines Disabled 12 | . 2 . . . 1 8 1 Max in Single Turn 2 | . 1 . . . 1 2 1 Garrison Relay 3 | . . . . . . 3 . Machines Repaired . | . . . . . . . . Machines Dismantled . | . . . . . . . . Machines Sabotaged . | . . . . . . . . Overloaded Fab Kills . | . . . . . . . . Hacking | -11 -10 -10 -10 -9 -8 -8 -7 --------- Run | Yrd Mat Min Exi Min Mat Gar Fac Machines Accessed 37 | . 7 . 2 1 17 4 6 Terminals 23 | . 6 . . . 11 4 2 Fabricators 1 | . . . . . . . 1 Repair Stations 3 | . . . . . 2 . 1 Recycling Units 3 | . 1 . . . 1 . 1 Scanalyzers 2 | . . . . . 2 . . Garrison Access 2 | . . . . . 1 . 1 Total Hacks 98 | . 32 . 2 1 49 5 9 Successful 44 | . 13 . 2 1 25 3 . Failed 53 | . 19 . . . 23 2 9 Catastrophic 4 | . . . . . . 2 2 Database Lockouts 1 | . . . . . 1 . . Manual 65 | . 29 . 1 . 30 2 3 Terminals 67 | . 27 . . . 32 5 3 Fabricators 2 | . . . . . . . 2 Repair Stations 7 | . . . . . 6 . 1 Recycling Units 11 | . 5 . . . 5 . 1 Scanalyzers 4 | . . . . . 4 . . Garrison Access 4 | . . . . . 2 . 2 Terminal Hacks 16 | . 5 . 2 1 6 2 . Record 1 | . . . 1 . . . . Robot Schematic 1 | . 1 . . . . . . Robot Analysis 6 | . 4 . . . 2 . . Prototype ID Bank 1 | . . . . . 1 . . Open Door 1 | . . . . 1 . . . Emergency Access Points 1 | . . . . . . 1 . Alert Level 1 | . . . . . 1 . . Unreport Threat 1 | . . . . . 1 . . Locate Traps 1 | . . . . . 1 . . Garrison Registry 1 | . . . . . . 1 . Proto ID Catalog 1 | . . . 1 . . . . Fabricator Hacks . | . . . . . . . . Repair Station Hacks 4 | . . . . . 4 . . Scan Component 2 | . . . . . 2 . . Repair 2 | . . . . . 2 . . Recycling Unit Hacks 1 | . 1 . . . . . . Retrieve Components 1 | . 1 . . . . . . Scanalyzer 3 | . . . . . 3 . . Insert Component 2 | . . . . . 2 . . Analyze 1 | . . . . . 1 . . Garrison Access Hacks 1 | . . . . . 1 . . Unlock Access 1 | . . . . . 1 . . Unauthorized Hacks 19 | . 7 . . . 11 1 . Terminals 18 | . 7 . . . 10 1 . Assimilate 1 | . . . . . 1 . . Botnet 5 | . 2 . . . 2 1 . Skim 12 | . 5 . . . 7 . . Fabricators . | . . . . . . . . Repair Stations . | . . . . . . . . Recycling Units 1 | . . . . . 1 . . Tunnel 1 | . . . . . 1 . . Scanalyzers . | . . . . . . . . Garrison Access . | . . . . . . . . Data Cores Recovered 1 | . . . . . . . 1 Used . | . . . . . . . . Hacking Detections 32 | . 7 . . . 15 4 6 Full Trace Events 2 | . 1 . . . . . 1 Feedback Events . | . . . . . . . . Feedback Blocked . | . . . . . . . . Robot Schematics Acquired 1 | . 1 . . . . . . Robots Built . | . . . . . . . . Authchips . | . . . . . . . . Time . | . . . . . . . . Total Robot Build Rating . | . . . . . . . . Part Schematics Acquired 1 | . . . . . 1 . . Parts Built . | . . . . . . . . Authchips . | . . . . . . . . Time . | . . . . . . . . Total Part Build Rating . | . . . . . . . . Parts Repaired 2 | . . . . . 2 . . Time 70 | . . . . . 70 . . Parts Recycled . | . . . . . . . . Recycled Matter . | . . . . . . . . Retrieved Matter . | . . . . . . . . Retrieved Components 10 | . 10 . . . . . . Parts Scanalyzed 2 | . . . . . 2 . . Part Schematics Acquired 1 | . . . . . 1 . . Parts Damaged 1 | . . . . . 1 . . Bothacking | -11 -10 -10 -10 -9 -8 -8 -7 ------------ Run | Yrd Mat Min Exi Min Mat Gar Fac Used RIF Installer . | . . . . . . . . Robots Hacked . | . . . . . . . . Non-combat . | . . . . . . . . Combat . | . . . . . . . . Robot Hacks Applied . | . . . . . . . . Relay Couplers Released 13 | . . . . . . 13 . Machine Destruction 13 | . . . . . . 13 . Fabnet Peak Effective % . | . . . . . . . . Robots Rewired 2 | . . . . . . 2 . Allies Hacked . | . . . . . . . . Hacks Repelled . | . . . . . . . . Allies | -11 -10 -10 -10 -9 -8 -8 -7 -------- Run | Yrd Mat Min Exi Min Mat Gar Fac Total Allies 2 | . . . . . . 2 . Largest Group 2 | . . . . . . 2 . Highest-Rated Group 59 | . . . . . . 59 . Highest-Rated Ally 39 | . . . . . . 39 . Initial Warlord ECA Mod 6 | . . . . . . . 6 Total Orders . | . . . . . . . . Ally Attacks 11 | . . . . . . 11 . Total Damage 240 | . . . . . . 240 . Kills 3 | . . . . . . 3 . Allies Corrupted . | . . . . . . . . Allies Melted 1 | . . . . . . 1 . Intel | -11 -10 -10 -10 -9 -8 -8 -7 ------- Run | Yrd Mat Min Exi Min Mat Gar Fac Active Infowar (turns) 4865 | 319 2390 530 823 . . . 803 Seismic 4764 | 319 2390 530 823 . . . 702 Machine Analysis 434 | . . . . . . . 434 Robot Analysis Total 6 | . 4 . . . 2 . . Derelict Logs Recovered 1 | . . . . 1 . . . Drone Launches . | . . . . . . . . Drone Recoveries . | . . . . . . . . Exploration | -11 -10 -10 -10 -9 -8 -8 -7 ------------- Run | Yrd Mat Min Exi Min Mat Gar Fac Turns Passed 13558 | 677 2428 530 823 1343 4765 2189 803 Spaces Moved 4579 | 347 936 163 257 300 1612 695 269 Core 28 | 6 . . . 22 . . . Treads 4551 | 341 936 163 257 278 1612 695 269 Legs . | . . . . . . . . Wheels . | . . . . . . . . Hover . | . . . . . . . . Flight . | . . . . . . . . Fastest Speed 50 | 50 160 320 320 320 238 238 240 Average Speed 252 | 158 225 320 320 413 248 239 241 Slowest Speed 1600 | 160 320 320 320 1600 400 242 242 Overloaded Moves . | . . . . . . . . Propulsion Burnouts . | . . . . . . . . Robots Hopped . | . . . . . . . . Potential Cave-ins . | . . . . . . . . Cave-ins Triggered . | . . . . . . . . Exploration Rate (%) 57 | 14 100 40 61 69 88 78 9 Regions Visited 7 Branch Regions 3 Pre-discovered Areas 4 | . . . 1 . 3 . . Known Exits Taken 2 | . . 1 . . 1 . . Unknown Exits Taken 4 | 1 1 . 1 1 . . . Scrap Searched 1 | . . . . 1 . . . Spaces Dug 80 | . 6 . . 43 19 . 12 Terrain Destroyed 210 | . 35 . . 43 78 36 18 Melee 2 | . . . . . 2 . . Projectile 66 | . 12 . . . 35 1 18 AOE 142 | . 23 . . 43 41 35 . Terrain Rammed . | . . . . . . . . Walls Destroyed . | . . . . . . . . Machines Disabled . | . . . . . . . . Actions | -11 -10 -10 -10 -9 -8 -8 -7 --------- Run | Yrd Mat Min Exi Min Mat Gar Fac Total 5956 | 417 1123 173 259 396 2195 1043 350 Wait 716 | 28 72 10 . 74 371 155 6 Move 4571 | 346 935 162 256 299 1612 692 269 Hop . | . . . . . . . . Pick Up 69 | 5 18 1 3 8 20 11 3 Fast Attach 26 | 6 . . . . 12 6 2 Attach 25 | 1 1 . . . 2 12 9 Detach 2 | . . . . . 1 1 . Swap 104 | . 18 . . 9 38 29 10 Drop 61 | . 8 . . 3 38 9 3 Fire 328 | 29 65 . . 3 87 105 39 Melee 29 | . 1 . . . 8 11 9 Ram . | . . . . . . . . Kick . | . . . . . . . . Crush 13 | 2 5 . . . 6 . . Escape Stasis 6 | . . . . . . 6 . Rewire 6 | . . . . . . 6 . Trap . | . . . . . . . . Miscellaneous . | . . . . . . . . Route ------- -11/Scrapyard -10/Materials (discovered 6 exits: *Mat x3 / [*Min x2] / *Sub) -10/Mines (discovered 3 exits: Mat / *Exi / Sub) -10/Exiles -9/Mines (discovered 2 exits: *Mat x2) -8/Materials (discovered 5 exits: *Fac x3 / *Sto / Gar) -8/Garrison (discovered 3 exits: *Fac x3) -7/Factory (discovered 3 exits: Fac / *Low x2) History --------- Turn | Location | Event 9 | -11/Scrapyard | Discovered new exit (range 14) 678 | -11/Scrapyard | Entered Materials 679 | -10/Materials | Build established: Mutant 896 | -10/Materials | Discovered new exit (range 8) 982 | -10/Materials | Discovered new exit (range 16) 1097 | -10/Materials | Discovered new exit (range 15) 1131 | -10/Materials | Discovered new exit (range 10) 1378 | -10/Materials | Derelicts attacked the area 1854 | -10/Materials | Discovered new exit (range 16) 2197 | -10/Materials | Discovered new exit (range 5) 2718 | -10/Materials | Learned 4 Recycling zone layouts 2785 | -10/Materials | Learned Storage trap positions 2889 | -10/Materials | Learned location of 2 exits from Materials 2927 | -10/Materials | Learned location of 2 exits from Subcaves 2956 | -10/Materials | Learned Storage stockpile data 3003 | -10/Materials | Loaded intel: 8 trap records 3043 | -10/Materials | Learned location of 2 exits from Mines 3106 | -10/Materials | Entered Mines 3107 | -10/Mines | Identified exit to Subcaves 3108 | -10/Mines | Identified exit to Exiles 3108 | -10/Mines | Identified exit to Materials 3109 | -10/Mines | Met a Derelict bent on vengeance 3398 | -10/Mines | Found a damaged Exp. Sensor Array with a note attached 3405 | -10/Mines | Found Prototype Device 3545 | -10/Mines | Assembled infested the area 3629 | -10/Mines | Met 8R-AWN 3636 | -10/Mines | Entered Exiles 3710 | -10/Exiles | Welcomed by 8R-AWN 3768 | -10/Exiles | Met EX-HEX 3896 | -10/Exiles | Met EX-DEC 3908 | -10/Exiles | Learned location of Zion (-7) 3960 | -10/Exiles | Met EX-BIN 4008 | -10/Exiles | Aligned with FarCom system 4011 | -10/Exiles | Given EX-Vault access code 4088 | -10/Exiles | Opened EX-Vault 4113 | -10/Exiles | Found Longsword +1 4121 | -10/Exiles | Found AWS/Autocannon 4138 | -10/Exiles | Found Gui. Plasma Cannon 4212 | -10/Exiles | Warned to stay clear of 0b10 Research branches 4427 | -10/Exiles | Discovered new exit (range 12) 4459 | -10/Exiles | Stole three prototypes: Gui. Plasma Cannon, AWS/Autocannon, Longsword +1 4459 | -10/Exiles | Entered Mines 4986 | -9/Mines | Met a Derelict who couldn't figure out how to use a Trap Extractor 5457 | -9/Mines | Learned Materials stockpile data 5537 | -9/Mines | Received a Rocket Launcher from a helpful Derelict 5615 | -9/Mines | Discovered new exit (range 6) 5731 | -9/Mines | Discovered new exit (range 5) 5802 | -9/Mines | Entered Materials 5802 | -8/Materials | Evolved 4 slots: Propulsion x2, Utility x2 5803 | -8/Materials | Identified exit to Storage 5804 | -8/Materials | Identified exit to Factory 6812 | -8/Materials | Build established: Scavenger-Mutant 8261 | -8/Materials | Build established: Mutant 9548 | -8/Materials | Repaired Med. Armor Plating 10036 | -8/Materials | Learned Factory security intel 10063 | -8/Materials | Repaired Lgt. Deuterium Engine 10085 | -8/Materials | Learned location of Extension (-5) 10122 | -8/Materials | Learned location of 1 exit from Extension 10148 | -8/Materials | Learned Storage emergency access door positions 10163 | -8/Materials | Learned 2 Lower Caves zone layouts 10187 | -8/Materials | Learned location of 2 exits from Factory 10223 | -8/Materials | Learned Storage trap positions 10340 | -8/Materials | Central database locked down 10359 | -8/Materials | Discovered exit to Factory (range 16) 10567 | -8/Materials | Identified exit to Garrison 10567 | -8/Materials | Entered Garrison 10971 | -8/Garrison | Triggered checkpoint 11012 | -8/Garrison | Garrison Relay disabled 11026 | -8/Garrison | Garrison Relay disabled 11047 | -8/Garrison | Triggered checkpoint 11075 | -8/Garrison | Door terminal overloaded 11247 | -8/Garrison | Triggered checkpoint 11408 | -8/Garrison | Triggered checkpoint 11432 | -8/Garrison | Destroyed 7 combat bots 11636 | -8/Garrison | Triggered checkpoint 11719 | -8/Garrison | Garrison Relay disabled 11799 | -8/Garrison | Discovered exit to Factory (range 14) 11832 | -8/Garrison | Discovered exit to Factory (range 66) 11832 | -8/Garrison | Discovered exit to Factory (range 7) 11832 | -8/Garrison | Discovered exit to Factory (range 68) 11844 | -8/Garrison | Attempted to access garrison exit controls, blocked by remote lockdown 12011 | -8/Garrison | Triggered checkpoint 12155 | -8/Garrison | Spotted B-75 Beast 12179 | -8/Garrison | Attempted to access garrison exit controls, blocked by remote lockdown 12242 | -8/Garrison | Core integrity fell below 50% 12286 | -8/Garrison | Destroyed B-75 Beast 12291 | -8/Garrison | Lost 10 parts (2p3n3u2w) 12409 | -8/Garrison | Triggered checkpoint 12636 | -8/Garrison | Triggered checkpoint 12756 | -8/Garrison | Entered Factory 12756 | -7/Factory | Evolved 2 slots: Utility x1, Weapon x1 12757 | -7/Factory | Identified exit to Lower Caves 12757 | -7/Factory | Identified exit to Factory 12758 | -7/Factory | FarCom data flow suspended 12838 | -7/Factory | Discovered exit to Lower Caves (range 4) 13556 | -7/Factory | First assault squad dispatched 13559 | -7/Factory | Self-destructed Last Messages --------------- 13538_ Lgt. Treads destroyed. 13539_ Imp. Medium Treads destroyed. 13540_ K-01 Serf collects debris. 13541_ G-47 Trooper knocked back. 13542_ Imp. Medium Treads destroyed. 13544_ K-01 Serf collects debris. 13545_ Slug penetrates Garrison Access. 13545_ K-01 Serf collects debris. 13552_ Imp. Light Armor Plating destroyed. 13553_ K-01 Serf collects debris. 13554_ Lgt. Treads destroyed. 13554_ K-01 Serf collects debris. 13556_ ALERT: Unidentified disturbance in Zone 7C, assault force dispatched. 13556_ Gui. Plasma Cannon destroyed. 13556_ K-01 Serf collects debris. 13557_ K-01 Serf destroyed. 13558_ Gauss Cannon destroyed. 13558_ Phase Cannon destroyed. 13558_ Rnf. Deuterium Engine destroyed. Map ----- +----------------------------------------------------+ | ???????????????????????????????????????"""???????? | | ???????????????????????????????????????"""???????? | | ???????????????????????????????????????"""???????? | | ?????????????????????????????????????????????????? | | ?????????????????????????????????????????????????? | | ?????????????????????????????????????????????????? | | ??????????????????????"""????????????????????????? | | ??????????????????????"""????????????????????????? | | ??????????????????????"""????????????????????????? | | ?????????????????????????????????????????????????? | | ?????????????????????????????????????????????????? | | ?????????????????????????????????????????????????? | | ?????????????????????????????????????????????????" | | ?????????????????"""?"""?"""?????"""?"""?????????? | | ?????????????????"""?"""?"""?????""" """?????????" | | ?????????????????"""?"""?"""?????""" """?????????? | | ????????????????????????????????? ?????????" | | ????????????????????????????????? ?? ???? | | ????????????????????????????????? ! ?? #??" | | ???????????????????############### ? ? #??? | | ???????????????????# ""G"" # #??" | | ???????????????????# """ ""["" # """ """ #??? | | ???????????????????# "" ! ![[ # """ """ #??? | | ???????????????????# """[! Y!=% # """ """ #??? | | ???????????????????# "=%*[%%g # #??? | | ???????????????????# =!@[=% % # """ #??? | | ???????????????????# k *%! # """ #??? | | ???????????????????###/#######+### """ """ #### | | ???????????????? % """ | | ???????????????? [ F" | | ?????????????""" !!! [ "" | | ?????????????"F" !!! | | ?????????????" !! | | ?????????????""" ##########"#########"#### | | ?????????????"""? """ ??????????##???????## | | ???????????????????""" ?T???????????????????# | | ???????????????????""" ??????????????????????# | | ???????????????????? ???????????????????????# | | ???????????????????? ????????????????????????# | | ?????????????????????????????????????????????# | | ?????????????????????????????????????????????# | | ?????????????????????????????????????????????# | | ?????????????????????????????????????????????#""" | | ?????????????????????????????????????????????#"Y | | ?????????????????????????????????????????????#""" | | ?????????????????????????????????????????????# == | | ????????????????????????????????????????????###### | | ???????????????????????????????????????????# ###?? | | ???????????????????????????????????????????##????? | | ?????????????????????????????????????????????????? | +----------------------------------------------------+ Best States ------------- Heat Dissipation 78 Energy Generation 18 Energy Capacity 310 Matter Stores 300 Matter Capacity 300 Sight Range 16 Terrain Scan Density 10 Armor Coverage 450 Resistance: KI 30 Evasion (%) 40 Recoil Reduction 4 Item Schematics ----------------- Imp. VTOL Module | -8/Materials | Scanalyzed Robot Schematics ------------------ M-13 Machinist | -10/Materials | Hacked Fabricated ------------ Nothing Repaired ---------- Med. Armor Plating | 23% | -8/Materials Lgt. Deuterium Engine | 22% | -8/Materials Alien Tech Used ----------------- None Achievements -------------- None Challenges ------------ None Game ------ Seed CargoCouplerWheel Manual? 0 Play Time 01:07:14 Cumulative 387.3 hours Start 2025.05.23 @ 14:21:27 End 2025.05.23 @ 15:35:00 Sessions 1 Manual Loads 0 Difficulty Rogue Special Mode None Game No. 188 Rogue 125 Adventurer 63 Explorer 0 Win Type - Total 8 Types 7/0/0/1/0/0/0/0/0/0 Lore% 84 Gallery% 76 Achievement% 64 Wizard Run 0 Options --------- Layout 2 ASCII 0 Keyboard 1 Movement Numpad Keybinds 0 Fullscreen 1 Font 24/Terminus Map View 50x44 Zoom Use 0% Tactical HUD 1 Map Filters NONE Filters NONE Steam 1 RUN: 1d80faaf-ce09-40cc-8378-84d0117761dc